[Event "Early-Titled-Tuesday-Blitz-February-20-2024"]
[Site "Chess.com"]
[Date "2024.02.20"]
[Round "3"]
[White "Chessbard1972"]
[Black "Aslanov_Umid"]
[Result "0-1"]
[WhiteElo "2460"]
[BlackElo "2670"]
[TimeControl "180+1"]
[EndTime "8:31:39 PST"]
[Termination "Aslanov_Umid won on time"]

1. e4 {[%clk 0:03:00.9]} 1... c5 {[%clk 0:03:00.7]} 2. Nc3 {[%clk 0:02:59.9]}
2... d6 {[%clk 0:02:59.9]} 3. f4 {[%clk 0:02:59.5]} 3... g6 {[%clk 0:03:00.6]}
4. Nf3 {[%clk 0:02:59.3]} 4... Bg7 {[%clk 0:03:01.3]} 5. Bc4 {[%clk 0:02:59.1]}
5... Nc6 {[%clk 0:03:00.7]} 6. d3 {[%clk 0:02:58.7]} 6... e6 {[%clk 0:03:01]} 7.
a3 {[%clk 0:02:58.1]} 7... Nge7 {[%clk 0:03:01]} 8. O-O {[%clk 0:02:57.9]} 8...
O-O {[%clk 0:03:01.3]} 9. Kh1 {[%clk 0:02:56.6]} 9... Rb8 {[%clk 0:02:59.6]} 10.
f5 {[%clk 0:02:55]} 10... exf5 {[%clk 0:02:53.9]} 11. Ng5 {[%clk 0:02:53.5]}
11... Ne5 {[%clk 0:02:49.8]} 12. Ba2 {[%clk 0:02:49.9]} 12... h6 {[%clk
0:02:32.8]} 13. Nf3 {[%clk 0:02:45.6]} 13... N7c6 {[%clk 0:02:33.3]} 14. Nd5
{[%clk 0:02:43.3]} 14... Be6 {[%clk 0:02:26.1]} 15. Nxe5 {[%clk 0:02:41.6]}
15... Nxe5 {[%clk 0:02:22.1]} 16. exf5 {[%clk 0:02:40.3]} 16... Bxf5 {[%clk
0:02:21.4]} 17. Rxf5 {[%clk 0:02:31.6]} 17... gxf5 {[%clk 0:02:19.7]} 18. Qh5
{[%clk 0:02:31.7]} 18... Ng4 {[%clk 0:02:13]} 19. h3 {[%clk 0:02:27.7]} 19...
Nf6 {[%clk 0:01:56]} 20. Qxf5 {[%clk 0:02:26.9]} 20... Nxd5 {[%clk 0:01:55.2]}
21. Qxd5 {[%clk 0:02:23]} 21... Qf6 {[%clk 0:01:44.7]} 22. Bd2 {[%clk 0:02:16]}
22... Qxb2 {[%clk 0:01:29.7]} 23. Rf1 {[%clk 0:02:13.2]} 23... Qe5 {[%clk
0:01:18.9]} 24. Qf3 {[%clk 0:01:53.5]} 24... Rbe8 {[%clk 0:01:08.9]} 25. Bxf7+
{[%clk 0:01:46.9]} 25... Kh8 {[%clk 0:01:09.1]} 26. Bf4 {[%clk 0:01:35]} 26...
Rxf7 {[%clk 0:00:42.9]} 27. Bxe5 {[%clk 0:01:33.5]} 27... Rxf3 {[%clk
0:00:43.7]} 28. Bxg7+ {[%clk 0:01:33.7]} 28... Kxg7 {[%clk 0:00:44.6]} 29. Rxf3
{[%clk 0:01:34.1]} 29... Re2 {[%clk 0:00:45.5]} 30. c4 {[%clk 0:01:25.1]} 30...
Ra2 {[%clk 0:00:39.8]} 31. Rf5 {[%clk 0:01:24.9]} 31... Rxa3 {[%clk 0:00:38.2]}
32. Rd5 {[%clk 0:01:23.2]} 32... Ra6 {[%clk 0:00:38.5]} 33. g4 {[%clk
0:01:20.1]} 33... Rb6 {[%clk 0:00:37.4]} 34. Kg2 {[%clk 0:01:20]} 34... a5
{[%clk 0:00:37.9]} 35. d4 {[%clk 0:01:16.6]} 35... Rb2+ {[%clk 0:00:30.6]} 36.
Kg3 {[%clk 0:01:13.8]} 36... Rd2 {[%clk 0:00:18.6]} 37. Rxd6 {[%clk 0:01:12.6]}
37... Rxd4 {[%clk 0:00:13.3]} 38. Rb6 {[%clk 0:01:11.2]} 38... Rxc4 {[%clk
0:00:13.9]} 39. Rxb7+ {[%clk 0:01:07.6]} 39... Kf6 {[%clk 0:00:14]} 40. Rb6+
{[%clk 0:01:05.7]} 40... Kg7 {[%clk 0:00:14.6]} 41. Ra6 {[%clk 0:01:03.9]} 41...
a4 {[%clk 0:00:13.1]} 42. Kh4 {[%clk 0:01:03.1]} 42... Rb4 {[%clk 0:00:12.6]}
43. Kh5 {[%clk 0:01:01.7]} 43... c4 {[%clk 0:00:12.5]} 44. Rxh6 {[%clk
0:00:54.2]} 44... Rb5+ {[%clk 0:00:11.2]} 45. g5 {[%clk 0:00:54.6]} 45... c3
{[%clk 0:00:11.3]} 46. Rc6 {[%clk 0:00:53.6]} 46... Rb3 {[%clk 0:00:08.5]} 47.
Rc7+ {[%clk 0:00:53.9]} 47... Kg8 {[%clk 0:00:06.6]} 48. Kh6 {[%clk 0:00:52.8]}
48... a3 {[%clk 0:00:05.9]} 49. g6 {[%clk 0:00:49.6]} 49... Rb8 {[%clk
0:00:03.7]} 50. Rxc3 {[%clk 0:00:48.4]} 50... Ra8 {[%clk 0:00:04.5]} 51. Rc1
{[%clk 0:00:45.6]} 51... a2 {[%clk 0:00:05.2]} 52. Ra1 {[%clk 0:00:45.8]} 52...
Ra5 {[%clk 0:00:05.3]} 53. h4 {[%clk 0:00:45.4]} 53... Kh8 {[%clk 0:00:05.9]}
54. h5 {[%clk 0:00:37.9]} 54... Kg8 {[%clk 0:00:04.5]} 55. Rc1 {[%clk
0:00:29.7]} 55... Ra8 {[%clk 0:00:02.6]} 56. Ra1 {[%clk 0:00:25.3]} 56... Ra5
{[%clk 0:00:02.6]} 57. g7 {[%clk 0:00:20.4]} 57... Ra6+ {[%clk 0:00:02.7]} 58.
Kg5 {[%clk 0:00:20.2]} 58... Kxg7 {[%clk 0:00:03.6]} 59. h6+ {[%clk 0:00:17.8]}
59... Kh7 {[%clk 0:00:03.8]} 60. Kf4 {[%clk 0:00:16.8]} 60... Kxh6 {[%clk
0:00:04.4]} 61. Ke3 {[%clk 0:00:17.3]} 61... Kg5 {[%clk 0:00:05.2]} 62. Kd2
{[%clk 0:00:17.7]} 62... Kf4 {[%clk 0:00:06]} 63. Kc2 {[%clk 0:00:18.2]} 63...
Ke3 {[%clk 0:00:06.8]} 64. Kb2 {[%clk 0:00:18.7]} 64... Kd2 {[%clk 0:00:07.6]}
65. Rxa2 {[%clk 0:00:19.3]} 65... Rb6+ {[%clk 0:00:08.3]} 66. Ka1+ {[%clk
0:00:12.7]} 66... Kc1 {[%clk 0:00:08.8]} 67. Ra4 {[%clk 0:00:11]} 67... Rb1+
{[%clk 0:00:09.4]} 68. Ka2 {[%clk 0:00:10.9]} 68... Rb2+ {[%clk 0:00:10.3]} 69.
Ka3 {[%clk 0:00:11.5]} 69... Rc2 {[%clk 0:00:10.2]} 70. Kb3 {[%clk 0:00:10]}
70... Kb1 {[%clk 0:00:05.9]} 71. Rc4 {[%clk 0:00:08.4]} 71... Rb2+ {[%clk
0:00:05.9]} 72. Kc3 {[%clk 0:00:08.8]} 72... Ra2 {[%clk 0:00:06]} 73. Kd4 {[%clk
0:00:09]} 73... Kb2 {[%clk 0:00:06.2]} 74. Kd5 {[%clk 0:00:08.3]} 74... Kb3
{[%clk 0:00:06.9]} 75. Rc5 {[%clk 0:00:08.5]} 75... Rd2+ {[%clk 0:00:07.5]} 76.
Kc6 {[%clk 0:00:08.5]} 76... Re2 {[%clk 0:00:08.1]} 77. Rb5+ {[%clk 0:00:08.5]}
77... Kc3 {[%clk 0:00:08.8]} 78. Rc5+ {[%clk 0:00:08.9]} 78... Kd4 {[%clk
0:00:09.7]} 79. Rd5+ {[%clk 0:00:09.2]} 79... Kc4 {[%clk 0:00:10.4]} 80. Rc5+
{[%clk 0:00:09.5]} 80... Kd4 {[%clk 0:00:11.3]} 81. Rd5+ {[%clk 0:00:09.8]}
81... Ke4 {[%clk 0:00:12.2]} 82. Rc5 {[%clk 0:00:10]} 82... Rd2 {[%clk
0:00:12.6]} 83. Kc7 {[%clk 0:00:08.5]} 83... Kd4 {[%clk 0:00:12.6]} 84. Kc6
{[%clk 0:00:08.4]} 84... Ra2 {[%clk 0:00:12.2]} 85. Rc1 {[%clk 0:00:08]} 85...
Ra6+ {[%clk 0:00:12]} 86. Kb5 {[%clk 0:00:07.9]} 86... Ra8 {[%clk 0:00:12.7]}
87. Rd1+ {[%clk 0:00:07.6]} 87... Kc3 {[%clk 0:00:13.5]} 88. Kc5 {[%clk
0:00:06.8]} 88... Ra5+ {[%clk 0:00:13.1]} 89. Kd6 {[%clk 0:00:05.9]} 89... Kc4
{[%clk 0:00:13.7]} 90. Rc1+ {[%clk 0:00:05.3]} 90... Kd4 {[%clk 0:00:14.5]} 91.
Rd1+ {[%clk 0:00:05.7]} 91... Ke4 {[%clk 0:00:15.4]} 92. Re1+ {[%clk 0:00:06.2]}
92... Kd3 {[%clk 0:00:16.3]} 93. Rd1+ {[%clk 0:00:06.3]} 93... Ke2 {[%clk
0:00:17]} 94. Rd5 {[%clk 0:00:06.5]} 94... Ra6+ {[%clk 0:00:17.9]} 95. Ke5
{[%clk 0:00:06.4]} 95... Ke3 {[%clk 0:00:18.8]} 96. Rc5 {[%clk 0:00:06]} 96...
Rh6 {[%clk 0:00:19.1]} 97. Kd5 {[%clk 0:00:04.1]} 97... Rh5+ {[%clk 0:00:19.1]}
98. Kc4 {[%clk 0:00:04.6]} 98... Rh6 {[%clk 0:00:20]} 99. Rd5 {[%clk 0:00:04.4]}
99... Ke4 {[%clk 0:00:20.9]} 100. Rd1 {[%clk 0:00:02.6]} 100... Rc6+ {[%clk
0:00:20.2]} 101. Kb5 {[%clk 0:00:02.3]} 101... Rc2 {[%clk 0:00:20.9]} 102. Kb4
{[%clk 0:00:01.8]} 102... Rb2+ {[%clk 0:00:20.9]} 103. Kc3 {[%clk 0:00:01.9]}
103... Rb8 {[%clk 0:00:21.8]} 104. Re1+ {[%clk 0:00:01.5]} 104... Kd5 {[%clk
0:00:22.1]} 105. Kd3 {[%clk 0:00:01.5]} 105... Rb3+ {[%clk 0:00:21.7]} 106. Kc2
{[%clk 0:00:02]} 106... Rh3 {[%clk 0:00:22.6]} 107. Rd1+ {[%clk 0:00:01.2]}
107... Kc4 {[%clk 0:00:23.3]} 108. Rd2 {[%clk 0:00:01.4]} 108... Rg3 {[%clk
0:00:23.6]} 109. Rf2 {[%clk 0:00:01.2]} 109... Ra3 {[%clk 0:00:24.1]} 110. Rf4+
{[%clk 0:00:01.3]} 110... Kd5 {[%clk 0:00:24.8]} 111. Kb2 {[%clk 0:00:01.4]}
111... Re3 {[%clk 0:00:24.5]} 112. Rh4 {[%clk 0:00:01.3]} 112... Ke5 {[%clk
0:00:24.9]} 113. Kc2 {[%clk 0:00:01.4]} 113... Rg3 {[%clk 0:00:25.5]} 114. Kd2
{[%clk 0:00:01.3]} 114... Rg2+ {[%clk 0:00:25.8]} 0-1

[Event "Early-Titled-Tuesday-Blitz-February-20-2024"]
[Site "Chess.com"]
[Date "2024.02.20"]
[Round "3"]
[White "JonaszBaum"]
[Black "Hovik_Hayrapetyan"]
[Result "1-0"]
[WhiteElo "2691"]
[BlackElo "2878"]
[TimeControl "180+1"]
[EndTime "8:31:48 PST"]
[Termination "JonaszBaum won by resignation"]

1. Nf3 {[%clk 0:03:00.9]} 1... Nf6 {[%clk 0:02:59.5]} 2. c4 {[%clk 0:03:00.3]}
2... e6 {[%clk 0:02:59.3]} 3. d4 {[%clk 0:02:59.5]} 3... d5 {[%clk 0:02:59.2]}
4. Bg5 {[%clk 0:02:58.8]} 4... h6 {[%clk 0:02:47.6]} 5. Bxf6 {[%clk 0:02:53.8]}
5... Qxf6 {[%clk 0:02:45]} 6. Nc3 {[%clk 0:02:52.2]} 6... Bb4 {[%clk 0:02:41.2]}
7. Qa4+ {[%clk 0:02:42.4]} 7... Nc6 {[%clk 0:02:39.2]} 8. cxd5 {[%clk
0:02:34.7]} 8... exd5 {[%clk 0:02:39]} 9. e3 {[%clk 0:02:32.9]} 9... O-O {[%clk
0:02:38]} 10. Rc1 {[%clk 0:02:31.5]} 10... Rd8 {[%clk 0:02:28]} 11. Be2 {[%clk
0:02:29.7]} 11... Bf8 {[%clk 0:02:11.3]} 12. O-O {[%clk 0:02:26.9]} 12... a6
{[%clk 0:01:47.8]} 13. Qb3 {[%clk 0:02:21.8]} 13... Qd6 {[%clk 0:01:45.2]} 14.
Na4 {[%clk 0:02:17.6]} 14... Ne7 {[%clk 0:01:30.2]} 15. Nc5 {[%clk 0:02:14.5]}
15... b6 {[%clk 0:01:27.9]} 16. Nd3 {[%clk 0:02:11.9]} 16... Ng6 {[%clk
0:01:13]} 17. Rc2 {[%clk 0:02:07.6]} 17... Bb7 {[%clk 0:00:53.7]} 18. Rfc1
{[%clk 0:02:02.3]} 18... Rac8 {[%clk 0:00:44.6]} 19. Qa4 {[%clk 0:01:42.9]}
19... f6 {[%clk 0:00:38.3]} 20. b4 {[%clk 0:01:36.8]} 20... Ne7 {[%clk
0:00:30.3]} 21. a3 {[%clk 0:01:36.8]} 21... g5 {[%clk 0:00:29.6]} 22. Qb3 {[%clk
0:01:36.6]} 22... Kg7 {[%clk 0:00:29]} 23. Rb1 {[%clk 0:01:15.9]} 23... Rb8
{[%clk 0:00:25.5]} 24. Qc3 {[%clk 0:01:13.8]} 24... Rd7 {[%clk 0:00:24.4]} 25.
Nd2 {[%clk 0:01:08.6]} 25... Kg6 {[%clk 0:00:20.4]} 26. Rbc1 {[%clk 0:01:06.3]}
26... Ng8 {[%clk 0:00:15.3]} 27. Qb3 {[%clk 0:00:54.8]} 27... h5 {[%clk
0:00:14.6]} 28. Rc3 {[%clk 0:00:53]} 28... Rc8 {[%clk 0:00:14]} 29. Qd1 {[%clk
0:00:52.8]} 29... h4 {[%clk 0:00:09.8]} 30. Bh5+ {[%clk 0:00:52.9]} 30... Kh6
{[%clk 0:00:07.4]} 31. Bg4 {[%clk 0:00:53.6]} 31... Kg6 {[%clk 0:00:05.3]} 32.
Bxd7 {[%clk 0:00:53.1]} 32... Qxd7 {[%clk 0:00:06.2]} 33. Nf3 {[%clk 0:00:52]}
33... Bd6 {[%clk 0:00:06.5]} 34. h3 {[%clk 0:00:47.7]} 34... Qe7 {[%clk
0:00:06.8]} 35. Nh2 {[%clk 0:00:42.5]} 35... Nh6 {[%clk 0:00:06.4]} 36. Qf3
{[%clk 0:00:41.9]} 36... Kg7 {[%clk 0:00:05.6]} 37. Ng4 {[%clk 0:00:41.4]} 37...
Nf7 {[%clk 0:00:06]} 38. Qf5 {[%clk 0:00:35.4]} 38... Re8 {[%clk 0:00:06]} 39.
Qf3 {[%clk 0:00:25.9]} 39... Qd7 {[%clk 0:00:05.1]} 40. Nh2 {[%clk 0:00:24.5]}
40... Qe7 {[%clk 0:00:05]} 41. Nb2 {[%clk 0:00:23.7]} 41... Qe6 {[%clk
0:00:05.2]} 42. Qg4 {[%clk 0:00:19.5]} 42... Qxg4 {[%clk 0:00:04.5]} 43. Nxg4
{[%clk 0:00:19.3]} 43... Re7 {[%clk 0:00:05.4]} 44. Nh2 {[%clk 0:00:19.3]} 44...
Kg6 {[%clk 0:00:05.8]} 45. Nf3 {[%clk 0:00:19.6]} 45... Nd8 {[%clk 0:00:06.1]}
46. Nd3 {[%clk 0:00:19.3]} 46... Ne6 {[%clk 0:00:06.6]} 47. a4 {[%clk
0:00:18.4]} 47... Nd8 {[%clk 0:00:05.7]} 48. a5 {[%clk 0:00:17.7]} 48... Nf7
{[%clk 0:00:06]} 49. axb6 {[%clk 0:00:17.9]} 49... cxb6 {[%clk 0:00:06.9]} 50.
Nd2 {[%clk 0:00:17.5]} 50... Nd8 {[%clk 0:00:05.5]} 51. Nb3 {[%clk 0:00:17.4]}
51... Kf7 {[%clk 0:00:05.3]} 52. Kf1 {[%clk 0:00:16.2]} 52... Ke6 {[%clk
0:00:05.8]} 53. Ke2 {[%clk 0:00:15.7]} 53... Kd7 {[%clk 0:00:06.3]} 54. R3c2
{[%clk 0:00:12.8]} 54... Ne6 {[%clk 0:00:06.5]} 55. f3 {[%clk 0:00:10.6]} 55...
Nd8 {[%clk 0:00:03.6]} 56. Kf2 {[%clk 0:00:10]} 56... Bc6 {[%clk 0:00:03.9]} 57.
Rc3 {[%clk 0:00:07.4]} 57... Bb5 {[%clk 0:00:04.3]} 58. Nd2 {[%clk 0:00:06.3]}
58... Bg3+ {[%clk 0:00:04.8]} 59. Ke2 {[%clk 0:00:06.5]} 59... Ne6 {[%clk
0:00:04.3]} 60. Kd1 {[%clk 0:00:05.4]} 60... Nd8 {[%clk 0:00:04.2]} 61. Nf1
{[%clk 0:00:05.6]} 61... Bd6 {[%clk 0:00:03.6]} 62. Kd2 {[%clk 0:00:05.9]} 62...
Nc6 {[%clk 0:00:03.9]} 63. Rb1 {[%clk 0:00:05.3]} 63... Bxd3 {[%clk 0:00:04.2]}
64. Rxd3 {[%clk 0:00:04.9]} 64... Nxb4 {[%clk 0:00:04.9]} 65. Rdb3 {[%clk
0:00:04.6]} 65... a5 {[%clk 0:00:05.6]} 66. Ke2 {[%clk 0:00:02.5]} 66... f5
{[%clk 0:00:06]} 67. Nd2 {[%clk 0:00:03]} 67... Kc6 {[%clk 0:00:05.7]} 68. Kf2
{[%clk 0:00:02.5]} 68... Kb5 {[%clk 0:00:06.1]} 69. Rc3 {[%clk 0:00:02.8]} 69...
a4 {[%clk 0:00:05.1]} 70. Rc8 {[%clk 0:00:03.1]} 70... Bg3+ {[%clk 0:00:04]} 71.
Ke2 {[%clk 0:00:02.5]} 71... a3 {[%clk 0:00:04.5]} 72. Ra8 {[%clk 0:00:02.3]}
72... a2 {[%clk 0:00:04.4]} 73. Rxa2 {[%clk 0:00:02.6]} 73... Bf4 {[%clk
0:00:05.1]} 74. Nf1 {[%clk 0:00:02.4]} 74... Bd6 {[%clk 0:00:04.9]} 75. Rab2
{[%clk 0:00:03]} 75... f4 {[%clk 0:00:05.1]} 76. Kf2 {[%clk 0:00:02.3]} 76...
fxe3+ {[%clk 0:00:05.3]} 77. Nxe3 {[%clk 0:00:02.9]} 77... Bg3+ {[%clk
0:00:05.9]} 78. Ke2 {[%clk 0:00:03.4]} 78... Bd6 {[%clk 0:00:06.6]} 79. Kd2
{[%clk 0:00:03.3]} 79... Ka4 {[%clk 0:00:06.2]} 80. Nc2 {[%clk 0:00:03.6]} 80...
Bf4+ {[%clk 0:00:05.8]} 81. Kd1 {[%clk 0:00:03.2]} 81... Nxc2 {[%clk 0:00:05.3]}
82. Rxc2 {[%clk 0:00:04.1]} 82... Bd6 {[%clk 0:00:05.1]} 83. Ra2+ {[%clk
0:00:04.4]} 83... Ba3 {[%clk 0:00:05.7]} 84. Kd2 {[%clk 0:00:04.2]} 84... b5
{[%clk 0:00:05.6]} 85. Rc2 {[%clk 0:00:03.5]} 85... b4 {[%clk 0:00:05.8]} 86.
Rc5 {[%clk 0:00:03.9]} 86... b3 {[%clk 0:00:05.3]} 87. Rxd5 {[%clk 0:00:03.8]}
87... Bb4+ {[%clk 0:00:05]} 88. Kd3 {[%clk 0:00:03.6]} 88... Ka3 {[%clk
0:00:05.1]} 89. Rb5 {[%clk 0:00:02.8]} 89... Rc7 {[%clk 0:00:04.7]} 90. d5
{[%clk 0:00:02.8]} 90... Rc3+ {[%clk 0:00:04.5]} 91. Kd4 {[%clk 0:00:03.4]}
91... Rc2 {[%clk 0:00:05.4]} 92. Ke5 {[%clk 0:00:02.3]} 92... Re2+ {[%clk
0:00:05.6]} 93. Kf6 {[%clk 0:00:02.4]} 93... Bc3+ {[%clk 0:00:05.5]} 94. Kf7
{[%clk 0:00:02.4]} 94... b2 {[%clk 0:00:06.4]} 95. d6 {[%clk 0:00:02.5]} 95...
Rd2 {[%clk 0:00:06.9]} 96. Ke7 {[%clk 0:00:02.2]} 96... Re2+ {[%clk 0:00:07.3]}
97. Kf8 {[%clk 0:00:02.5]} 97... Rd2 {[%clk 0:00:08.2]} 98. Ke8 {[%clk
0:00:03.1]} 98... Ka2 {[%clk 0:00:08.8]} 99. R1xb2+ {[%clk 0:00:02.6]} 99...
Bxb2 {[%clk 0:00:09.7]} 100. d7 {[%clk 0:00:02.9]} 100... Re2+ {[%clk 0:00:10]}
101. Kf8 {[%clk 0:00:02.6]} 101... Ba3+ {[%clk 0:00:09.7]} 102. Kg8 {[%clk
0:00:02.2]} 102... Rd2 {[%clk 0:00:10.2]} 103. Rb7 {[%clk 0:00:02.6]} 103... Bb2
{[%clk 0:00:05.8]} 104. Kf7 {[%clk 0:00:02.8]} 104... Bc3 {[%clk 0:00:06.1]}
105. Ke7 {[%clk 0:00:03]} 105... Ba5 {[%clk 0:00:06.3]} 106. Ra7 {[%clk
0:00:02.9]} 106... Re2+ {[%clk 0:00:06.6]} 107. Kf7 {[%clk 0:00:02.5]} 107...
Kb3 {[%clk 0:00:06.4]} 108. Rxa5 {[%clk 0:00:02.8]} 108... Rd2 {[%clk
0:00:07.2]} 109. Ke7 {[%clk 0:00:02.9]} 109... Re2+ {[%clk 0:00:07.4]} 110. Kd6
{[%clk 0:00:03.5]} 110... Rxg2 {[%clk 0:00:08]} 111. d8=Q {[%clk 0:00:03.1]} 1-0

[Event "Early-Titled-Tuesday-Blitz-February-20-2024"]
[Site "Chess.com"]
[Date "2024.02.20"]
[Round "4"]
[White "DefiantChair"]
[Black "ckgchess"]
[Result "0-1"]
[WhiteElo "2585"]
[BlackElo "2862"]
[TimeControl "180+1"]
[EndTime "8:34:00 PST"]
[Termination "ckgchess won by checkmate"]

1. e4 {[%clk 0:03:00.9]} 1... c5 {[%clk 0:02:58.9]} 2. Nf3 {[%clk 0:03:00.2]}
2... d6 {[%clk 0:02:59.3]} 3. d4 {[%clk 0:03:00.5]} 3... cxd4 {[%clk 0:03:00.2]}
4. Nxd4 {[%clk 0:03:01.4]} 4... Nf6 {[%clk 0:03:00.5]} 5. Nc3 {[%clk 0:03:02.1]}
5... e5 {[%clk 0:03:00.8]} 6. Bb5+ {[%clk 0:03:01.2]} 6... Nbd7 {[%clk 0:03:01]}
7. Nf5 {[%clk 0:03:01]} 7... a6 {[%clk 0:03:01.3]} 8. Bxd7+ {[%clk 0:03:01]}
8... Qxd7 {[%clk 0:03:01.5]} 9. Ne3 {[%clk 0:03:01.9]} 9... Be7 {[%clk
0:02:59.1]} 10. Ned5 {[%clk 0:03:00.8]} 10... Nxd5 {[%clk 0:02:59.3]} 11. Nxd5
{[%clk 0:03:01.7]} 11... Bd8 {[%clk 0:03:00]} 12. Be3 {[%clk 0:03:01]} 12... O-O
{[%clk 0:02:58.3]} 13. c3 {[%clk 0:03:00.2]} 13... b5 {[%clk 0:02:57.6]} 14. O-O
{[%clk 0:02:59.5]} 14... Bb7 {[%clk 0:02:56.3]} 15. a4 {[%clk 0:02:59.2]} 15...
f5 {[%clk 0:02:52.6]} 16. exf5 {[%clk 0:02:58.7]} 16... Qc6 {[%clk 0:02:38.7]}
17. axb5 {[%clk 0:02:47.7]} 17... axb5 {[%clk 0:02:36.5]} 18. Rxa8 {[%clk
0:02:34.1]} 18... Bxa8 {[%clk 0:02:37.4]} 19. f6 {[%clk 0:02:34.3]} 19... Qxd5
{[%clk 0:02:32]} 20. fxg7 {[%clk 0:02:33.3]} 20... Qxg2# {[%clk 0:02:31.1]} 0-1

[Event "Early-Titled-Tuesday-Blitz-February-20-2024"]
[Site "Chess.com"]
[Date "2024.02.20"]
[Round "4"]
[White "picturesquecheck"]
[Black "bazar-wokzal"]
[Result "0-1"]
[WhiteElo "2430"]
[BlackElo "2688"]
[TimeControl "180+1"]
[EndTime "8:34:04 PST"]
[Termination "bazar-wokzal won by resignation"]

1. e4 {[%clk 0:02:53.4]} 1... Nc6 {[%clk 0:02:58]} 2. Nf3 {[%clk 0:02:50.7]}
2... d5 {[%clk 0:02:57.8]} 3. exd5 {[%clk 0:02:49.6]} 3... Qxd5 {[%clk
0:02:58.1]} 4. Nc3 {[%clk 0:02:50.3]} 4... Qa5 {[%clk 0:02:58.3]} 5. d4 {[%clk
0:02:49]} 5... Bg4 {[%clk 0:02:58.3]} 6. h3 {[%clk 0:02:41]} 6... Bxf3 {[%clk
0:02:57.9]} 7. Qxf3 {[%clk 0:02:39]} 7... O-O-O {[%clk 0:02:58.2]} 8. Qxf7
{[%clk 0:02:26.2]} 8... e5 {[%clk 0:02:56.7]} 9. d5 {[%clk 0:02:05.5]} 9... Nd4
{[%clk 0:02:56.3]} 10. Bd3 {[%clk 0:02:03.4]} 10... Nf6 {[%clk 0:02:56.2]} 11.
O-O {[%clk 0:01:59.1]} 11... Rd7 {[%clk 0:02:56.1]} 0-1

[Event "Early-Titled-Tuesday-Blitz-February-20-2024"]
[Site "Chess.com"]
[Date "2024.02.20"]
[Round "4"]
[White "Brave_spirit12"]
[Black "ahmedkandiliii"]
[Result "1-0"]
[WhiteElo "2733"]
[BlackElo "2531"]
[TimeControl "180+1"]
[EndTime "8:34:32 PST"]
[Termination "Brave_spirit12 won by resignation"]

1. e4 {[%clk 0:03:00.9]} 1... e5 {[%clk 0:02:59.4]} 2. Nf3 {[%clk 0:03:00.7]}
2... Nc6 {[%clk 0:02:59.4]} 3. d4 {[%clk 0:02:57.9]} 3... exd4 {[%clk
0:03:00.3]} 4. Nxd4 {[%clk 0:02:58.1]} 4... Nf6 {[%clk 0:02:59.6]} 5. Nc3 {[%clk
0:02:58.2]} 5... Bb4 {[%clk 0:02:58.4]} 6. Nxc6 {[%clk 0:02:58.6]} 6... bxc6
{[%clk 0:02:57.8]} 7. Qd4 {[%clk 0:02:59.1]} 7... Qe7 {[%clk 0:02:46.7]} 8. f3
{[%clk 0:02:58.5]} 8... Bxc3+ {[%clk 0:02:36.9]} 9. Qxc3 {[%clk 0:02:58.5]} 9...
d5 {[%clk 0:02:36.9]} 10. Qxc6+ {[%clk 0:02:58.1]} 10... Kf8 {[%clk 0:02:30.8]}
11. Qxa8 {[%clk 0:02:57.4]} 11... Qe8 {[%clk 0:02:23.7]} 12. Bg5 {[%clk
0:02:57.3]} 12... dxe4 {[%clk 0:02:19]} 13. O-O-O {[%clk 0:02:52.1]} 13... exf3
{[%clk 0:02:13.3]} 14. gxf3 {[%clk 0:02:50.1]} 14... h6 {[%clk 0:02:12.3]} 15.
Bxf6 {[%clk 0:02:49.6]} 15... gxf6 {[%clk 0:02:13.1]} 16. Bb5 {[%clk 0:02:38.2]}
16... Qe3+ {[%clk 0:02:03.6]} 17. Kb1 {[%clk 0:02:37.1]} 17... Kg7 {[%clk
0:02:04.5]} 18. Rhg1+ {[%clk 0:02:33.8]} 18... Kh7 {[%clk 0:02:04.3]} 19. Qe4+
{[%clk 0:02:30.2]} 1-0

[Event "Early-Titled-Tuesday-Blitz-February-20-2024"]
[Site "Chess.com"]
[Date "2024.02.20"]
[Round "4"]
[White "Casper"]
[Black "LikeWater"]
[Result "0-1"]
[WhiteElo "2532"]
[BlackElo "2737"]
[TimeControl "180+1"]
[EndTime "8:35:07 PST"]
[Termination "LikeWater won by resignation"]

1. Nf3 {[%clk 0:03:00.9]} 1... e6 {[%clk 0:03:00.9]} 2. b3 {[%clk 0:03:01.1]}
2... b6 {[%clk 0:03:01.8]} 3. Bb2 {[%clk 0:03:01.5]} 3... Bb7 {[%clk 0:03:02.7]}
4. e3 {[%clk 0:03:02.3]} 4... Nf6 {[%clk 0:03:03.3]} 5. Be2 {[%clk 0:03:02.9]}
5... g6 {[%clk 0:03:04.2]} 6. O-O {[%clk 0:03:03.3]} 6... Bg7 {[%clk 0:03:04.9]}
7. c4 {[%clk 0:03:04]} 7... O-O {[%clk 0:03:05.6]} 8. Nc3 {[%clk 0:03:04.5]}
8... d6 {[%clk 0:03:06]} 9. d4 {[%clk 0:03:05]} 9... Nbd7 {[%clk 0:03:06.9]} 10.
Rc1 {[%clk 0:03:04.4]} 10... c5 {[%clk 0:03:07.3]} 11. dxc5 {[%clk 0:02:59.9]}
11... Nxc5 {[%clk 0:03:06.4]} 12. b4 {[%clk 0:02:54.6]} 12... Nce4 {[%clk
0:03:06.5]} 13. Nxe4 {[%clk 0:02:54.9]} 13... Nxe4 {[%clk 0:03:07.4]} 14. Bxg7
{[%clk 0:02:54.5]} 14... Kxg7 {[%clk 0:03:08.3]} 15. Qd4+ {[%clk 0:02:54.6]}
15... Qf6 {[%clk 0:03:09]} 16. Rfd1 {[%clk 0:02:53.4]} 16... Rfd8 {[%clk
0:03:09.5]} 17. Bd3 {[%clk 0:02:43.3]} 17... d5 {[%clk 0:03:05.5]} 18. Bxe4
{[%clk 0:02:38.3]} 18... dxe4 {[%clk 0:03:06.4]} 19. Qxf6+ {[%clk 0:02:37.6]}
19... Kxf6 {[%clk 0:03:07.3]} 20. Nd4 {[%clk 0:02:37.5]} 20... a6 {[%clk
0:03:08]} 21. Kf1 {[%clk 0:02:19.6]} 21... e5 {[%clk 0:03:07.2]} 22. Nb3 {[%clk
0:02:12.8]} 22... Rac8 {[%clk 0:03:07.8]} 23. c5 {[%clk 0:02:11.5]} 23... bxc5
{[%clk 0:03:00.7]} 24. Nxc5 {[%clk 0:02:12.4]} 24... Bc6 {[%clk 0:03:01.3]} 25.
a4 {[%clk 0:02:03.3]} 25... Rxd1+ {[%clk 0:02:56.1]} 26. Rxd1 {[%clk 0:02:03.4]}
26... Ke7 {[%clk 0:02:52.7]} 27. Rc1 {[%clk 0:01:44.1]} 27... Bxa4 {[%clk
0:02:52.7]} 28. Ke2 {[%clk 0:01:42.7]} 28... Bb5+ {[%clk 0:02:52]} 29. Kd2
{[%clk 0:01:43.1]} 29... Rd8+ {[%clk 0:02:51.4]} 30. Ke1 {[%clk 0:01:42]} 30...
f5 {[%clk 0:02:52.3]} 31. Nb7 {[%clk 0:01:37.5]} 31... Rd7 {[%clk 0:02:52.6]}
32. Nc5 {[%clk 0:01:36.8]} 32... Rc7 {[%clk 0:02:53.2]} 33. Rd1 {[%clk
0:01:36.9]} 33... a5 {[%clk 0:02:53.7]} 0-1